[Event "Titled Tuesday Blitz July 20 2021"]
[White "Quparadze, Giga"]
[Black "Nakamura, Hikaru"]
[WhiteFideId "13602250"]
[BlackFideId "2016192"]
[WhiteElo "2658"]
[BlackElo "2900"]
[Result "1-0"]
[Round "10"]
[TimeControl "180+1"]
[Date "2021.07.20"]
[WhiteClock "0:00:58"]
[BlackClock "0:00:07"]

1. e4 {[%clk 0:03:00]}  e5 {[%clk 0:02:59]} 2. Nf3 {[%clk 0:03:00]}  Nc6 {[%clk 0:03:00]} 3. Bb5 {[%clk 0:03:00]}  Nf6 {[%clk 0:03:00]} 4. O-O {[%clk 0:03:00]}  Nxe4 {[%clk 0:02:59]} 5. d4 {[%clk 0:03:00]}  Nd6 {[%clk 0:03:00]} 6. Bxc6 {[%clk 0:03:00]}  dxc6 {[%clk 0:03:00]} 7. dxe5 {[%clk 0:03:00]}  Nf5 {[%clk 0:03:01]} 8. Qxd8+ {[%clk 0:03:00]}  Kxd8 {[%clk 0:03:02]} 9. Rd1+ {[%clk 0:03:00]}  Ke8 {[%clk 0:03:03]} 10. h3 {[%clk 0:03:01]}  Ne7 {[%clk 0:03:03]} 11. Nc3 {[%clk 0:02:53]}  Ng6 {[%clk 0:03:01]} 12. Ne2 {[%clk 0:02:52]}  Bf5 {[%clk 0:02:57]} 13. Ned4 {[%clk 0:02:51]}  Bd7 {[%clk 0:02:57]} 14. Re1 {[%clk 0:02:48]}  c5 {[%clk 0:02:54]} 15. e6 {[%clk 0:02:48]}  cxd4 {[%clk 0:02:54]} 16. exd7+ {[%clk 0:02:47]}  Kxd7 {[%clk 0:02:55]} 17. Nxd4 {[%clk 0:02:46]}  f6 {[%clk 0:02:39]} 18. Be3 {[%clk 0:02:43]}  Re8 {[%clk 0:02:25]} 19. Rad1 {[%clk 0:02:41]}  Kc8 {[%clk 0:02:25]} 20. Nb5 {[%clk 0:02:26]}  a6 {[%clk 0:02:17]} 21. Nxc7 {[%clk 0:02:23]}  Rxe3 {[%clk 0:02:13]} 22. Rxe3 {[%clk 0:02:21]}  Kxc7 {[%clk 0:02:13]} 23. Rc3+ {[%clk 0:02:21]}  Kb6 {[%clk 0:02:06]} 24. Rb3+ {[%clk 0:02:20]}  Kc7 {[%clk 0:02:00]} 25. Rc3+ {[%clk 0:02:19]}  Kb6 {[%clk 0:02:01]} 26. Rd7 {[%clk 0:02:01]}  Ne5 {[%clk 0:01:39]} 27. Rb3+ {[%clk 0:02:00]}  Kc6 {[%clk 0:01:39]} 28. Rdxb7 {[%clk 0:01:59]}  Bc5 {[%clk 0:01:38]} 29. Rb8 {[%clk 0:01:59]}  Rxb8 {[%clk 0:01:33]} 30. Rxb8 {[%clk 0:02:00]}  h5 {[%clk 0:01:26]} 31. a4 {[%clk 0:01:54]}  h4 {[%clk 0:01:20]} 32. b4 {[%clk 0:01:54]}  Bb6 {[%clk 0:01:13]} 33. Kf1 {[%clk 0:01:45]}  g5 {[%clk 0:01:08]} 34. Rc8+ {[%clk 0:01:36]}  Kb7 {[%clk 0:00:55]} 35. Rf8 {[%clk 0:01:35]}  Nd7 {[%clk 0:00:55]} 36. Rf7 {[%clk 0:01:32]}  Kc6 {[%clk 0:00:56]} 37. c4 {[%clk 0:01:32]}  Bd4 {[%clk 0:00:56]} 38. b5+ {[%clk 0:01:30]}  axb5 {[%clk 0:00:55]} 39. cxb5+ {[%clk 0:01:31]}  Kd6 {[%clk 0:00:55]} 40. a5 {[%clk 0:01:30]}  Bc3 {[%clk 0:00:32]} 41. a6 {[%clk 0:01:18]}  Bd4 {[%clk 0:00:32]} 42. Ke2 {[%clk 0:01:14]}  Bb6 {[%clk 0:00:30]} 43. g3 {[%clk 0:01:14]}  g4 {[%clk 0:00:20]} 44. hxg4 {[%clk 0:01:07]}  h3 {[%clk 0:00:17]} 45. Rh7 {[%clk 0:01:06]}  Ne5 {[%clk 0:00:14]} 46. Rxh3 {[%clk 0:01:02]}  Nxg4 {[%clk 0:00:07]} 47. Rh7 {[%clk 0:00:59]}  Nxf2 {[%clk 0:00:06]} 48. a7 {[%clk 0:00:59]}  Bxa7 {[%clk 0:00:07]} 49. Rxa7 {[%clk 0:00:59]}  Ne4 {[%clk 0:00:08]} 50. Kf3 {[%clk 0:00:59]}  Nc3 {[%clk 0:00:08]} 51. Ra6+ {[%clk 0:00:59]}  Kc5 {[%clk 0:00:07]} 52. Rc6+ {[%clk 0:00:58]} 1-0


[Site "https://www.chess.com"]

[Event "Titled Tuesday Blitz July 20 2021"]
[White "Rosenberg, Evan S"]
[Black "Rottenwohrer Suarez, Juan"]
[WhiteFideId "2019299"]
[BlackFideId "32068182"]
[WhiteElo "2308"]
[BlackElo "2158"]
[Result "0-1"]
[Round "10"]
[TimeControl "180+1"]
[Date "2021.07.21"]
[WhiteClock "0:00:13"]
[BlackClock "0:01:18"]

1. Nf3 {[%clk 0:03:00]}  Nf6 {[%clk 0:03:00]} 2. c4 {[%clk 0:03:00]}  g6 {[%clk 0:03:00]} 3. Nc3 {[%clk 0:03:01]}  Bg7 {[%clk 0:03:00]} 4. e4 {[%clk 0:03:01]}  c5 {[%clk 0:03:00]} 5. d4 {[%clk 0:02:37]}  cxd4 {[%clk 0:03:01]} 6. Nxd4 {[%clk 0:02:35]}  Nc6 {[%clk 0:03:02]} 7. Be3 {[%clk 0:02:33]}  d6 {[%clk 0:03:00]} 8. f3 {[%clk 0:02:32]}  O-O {[%clk 0:03:00]} 9. Be2 {[%clk 0:02:29]}  Nxd4 {[%clk 0:03:00]} 10. Bxd4 {[%clk 0:02:28]}  a5 {[%clk 0:03:01]} 11. O-O {[%clk 0:02:27]}  Bd7 {[%clk 0:03:00]} 12. Qd2 {[%clk 0:02:19]}  a4 {[%clk 0:02:59]} 13. Rac1 {[%clk 0:02:16]}  Bc6 {[%clk 0:02:59]} 14. Rfd1 {[%clk 0:02:15]}  Nd7 {[%clk 0:02:56]} 15. Bxg7 {[%clk 0:02:14]}  Kxg7 {[%clk 0:02:56]} 16. h4 {[%clk 0:02:08]}  Qa5 {[%clk 0:02:50]} 17. Nd5 {[%clk 0:01:59]}  Qxd2 {[%clk 0:02:44]} 18. Rxd2 {[%clk 0:01:59]}  Bxd5 {[%clk 0:02:45]} 19. cxd5 {[%clk 0:01:56]}  Rfc8 {[%clk 0:02:43]} 20. Rdc2 {[%clk 0:01:55]}  Rxc2 {[%clk 0:02:43]} 21. Rxc2 {[%clk 0:01:55]}  Nc5 {[%clk 0:02:43]} 22. Kf2 {[%clk 0:01:50]}  f5 {[%clk 0:02:42]} 23. e5 {[%clk 0:01:44]}  f4 {[%clk 0:02:30]} 24. e6 {[%clk 0:01:33]}  Kf6 {[%clk 0:02:27]} 25. Bc4 {[%clk 0:01:26]}  Ra5 {[%clk 0:02:23]} 26. b3 {[%clk 0:01:11]}  axb3 {[%clk 0:02:19]} 27. axb3 {[%clk 0:01:12]}  Ra3 {[%clk 0:02:05]} 28. b4 {[%clk 0:00:54]}  Na4 {[%clk 0:01:59]} 29. Ra2 {[%clk 0:00:26]}  Rxa2+ {[%clk 0:01:58]} 30. Bxa2 {[%clk 0:00:27]}  Ke5 {[%clk 0:01:53]} 31. h5 {[%clk 0:00:21]}  gxh5 {[%clk 0:01:52]} 32. g3 {[%clk 0:00:12]}  fxg3+ {[%clk 0:01:44]} 33. Kxg3 {[%clk 0:00:13]}  Nc3 {[%clk 0:01:44]} 34. Bc4 {[%clk 0:00:10]}  Nxd5 {[%clk 0:01:41]} 35. Kh4 {[%clk 0:00:11]}  Nf4 {[%clk 0:01:38]} 36. Kg5 {[%clk 0:00:09]}  d5 {[%clk 0:01:33]} 37. Bb3 {[%clk 0:00:07]}  d4 {[%clk 0:01:31]} 38. Bc2 {[%clk 0:00:06]}  d3 {[%clk 0:01:31]} 39. Bxd3 {[%clk 0:00:05]}  Nxd3 {[%clk 0:01:29]} 40. Kxh5 {[%clk 0:00:06]}  Nxb4 {[%clk 0:01:23]} 41. Kh6 {[%clk 0:00:07]}  Nd5 {[%clk 0:01:22]} 42. Kxh7 {[%clk 0:00:08]}  b5 {[%clk 0:01:22]} 43. Kg7 {[%clk 0:00:08]}  b4 {[%clk 0:01:22]} 44. Kg6 {[%clk 0:00:09]}  b3 {[%clk 0:01:22]} 45. Kg5 {[%clk 0:00:10]}  b2 {[%clk 0:01:22]} 46. f4+ {[%clk 0:00:11]}  Nxf4 {[%clk 0:01:21]} 47. Kg4 {[%clk 0:00:12]}  b1=Q {[%clk 0:01:20]} 48. Kf3 {[%clk 0:00:12]}  Qd3+ {[%clk 0:01:18]} 49. Kf2 {[%clk 0:00:13]}  Qe2+ {[%clk 0:01:18]} 50. Kg1 {[%clk 0:00:13]}  Qg2# {[%clk 0:01:18]} 0-1


[Site "https://www.chess.com"]

[Event "Titled Tuesday Blitz July 20 2021"]
[White "Sarana, Alexey"]
[Black "Gusarov, Grigory"]
[WhiteFideId "24133795"]
[BlackFideId "24102172"]
[WhiteElo "2646"]
[BlackElo "2269"]
[Result "0-1"]
[Round "10"]
[TimeControl "180+1"]
[Date "2021.07.20"]
[WhiteClock "0:02:35"]
[BlackClock "0:01:36"]

1. e4 {[%clk 0:03:00]}  c6 {[%clk 0:02:53]} 2. d4 {[%clk 0:02:59]}  d5 {[%clk 0:02:53]} 3. e5 {[%clk 0:02:59]}  Bf5 {[%clk 0:02:52]} 4. Nf3 {[%clk 0:03:00]}  e6 {[%clk 0:02:51]} 5. Be2 {[%clk 0:03:01]}  Nd7 {[%clk 0:02:50]} 6. Nbd2 {[%clk 0:03:00]}  Ne7 {[%clk 0:02:50]} 7. Nb3 {[%clk 0:03:00]}  h6 {[%clk 0:02:49]} 8. O-O {[%clk 0:03:01]}  a5 {[%clk 0:02:46]} 9. a4 {[%clk 0:02:59]}  Bh7 {[%clk 0:02:43]} 10. Bd2 {[%clk 0:03:00]}  b6 {[%clk 0:02:38]} 11. c4 {[%clk 0:03:00]}  dxc4 {[%clk 0:02:35]} 12. Bxc4 {[%clk 0:03:00]}  Nd5 {[%clk 0:02:36]} 13. Ne1 {[%clk 0:02:56]}  Bb4 {[%clk 0:02:32]} 14. Qg4 {[%clk 0:02:52]}  Bg6 {[%clk 0:02:26]} 15. Bxd5 {[%clk 0:02:49]}  cxd5 {[%clk 0:02:26]} 16. Bxb4 {[%clk 0:02:49]}  axb4 {[%clk 0:02:27]} 17. Qe2 {[%clk 0:02:49]}  O-O {[%clk 0:02:19]} 18. Qb5 {[%clk 0:02:49]}  Qe7 {[%clk 0:02:20]} 19. Nd3 {[%clk 0:02:47]}  Bxd3 {[%clk 0:02:14]} 20. Qxd3 {[%clk 0:02:48]}  f6 {[%clk 0:02:14]} 21. exf6 {[%clk 0:02:47]}  Nxf6 {[%clk 0:02:12]} 22. Rfe1 {[%clk 0:02:47]}  Qd6 {[%clk 0:02:09]} 23. f3 {[%clk 0:02:46]}  Rfc8 {[%clk 0:02:04]} 24. Re2 {[%clk 0:02:46]}  Kf7 {[%clk 0:02:01]} 25. Qb5 {[%clk 0:02:43]}  Rc4 {[%clk 0:01:55]} 26. Rae1 {[%clk 0:02:42]}  Re8 {[%clk 0:01:50]} 27. Qxe8+ {[%clk 0:02:37]}  Nxe8 {[%clk 0:01:49]} 28. f4 {[%clk 0:02:36]}  Nf6 {[%clk 0:01:49]} 29. Re5 {[%clk 0:02:36]}  g6 {[%clk 0:01:48]} 30. h3 {[%clk 0:02:35]}  Ne4 {[%clk 0:01:48]} 31. Rf1 {[%clk 0:02:34]}  Rc2 {[%clk 0:01:47]} 32. a5 {[%clk 0:02:33]}  Rxb2 {[%clk 0:01:45]} 33. Nc1 {[%clk 0:02:33]}  bxa5 {[%clk 0:01:43]} 34. Nd3 {[%clk 0:02:33]}  Rd2 {[%clk 0:01:42]} 35. Ne1 {[%clk 0:02:34]}  b3 {[%clk 0:01:40]} 36. Nf3 {[%clk 0:02:35]}  Rc2 {[%clk 0:01:39]} 37. g4 {[%clk 0:02:34]}  b2 {[%clk 0:01:38]} 38. f5 {[%clk 0:02:35]}  Rc1 {[%clk 0:01:36]} 0-1


[Site "https://www.chess.com"]

[Event "Titled Tuesday Blitz July 20 2021"]
[White "Sargsyan, Anna M."]
[Black "Melikhov, Evgeny V."]
[WhiteFideId "13308130"]
[BlackFideId "4122046"]
[WhiteElo "2263"]
[BlackElo "1965"]
[Result "1/2-1/2"]
[Round "10"]
[TimeControl "180+1"]
[Date "2021.07.21"]
[WhiteClock "0:00:56"]
[BlackClock "0:00:48"]

1. d4 {[%clk 0:03:00]}  Nf6 {[%clk 0:02:59]} 2. c4 {[%clk 0:03:01]}  e6 {[%clk 0:02:59]} 3. Nf3 {[%clk 0:02:58]}  d5 {[%clk 0:02:58]} 4. Nc3 {[%clk 0:02:58]}  Bb4 {[%clk 0:02:58]} 5. Bg5 {[%clk 0:02:57]}  h6 {[%clk 0:02:58]} 6. Bxf6 {[%clk 0:02:57]}  Qxf6 {[%clk 0:02:59]} 7. e3 {[%clk 0:02:58]}  O-O {[%clk 0:02:58]} 8. Be2 {[%clk 0:02:57]}  c5 {[%clk 0:02:56]} 9. O-O {[%clk 0:02:50]}  cxd4 {[%clk 0:02:44]} 10. Nxd4 {[%clk 0:02:49]}  dxc4 {[%clk 0:02:37]} 11. Bxc4 {[%clk 0:02:45]}  Bxc3 {[%clk 0:02:36]} 12. bxc3 {[%clk 0:02:45]}  b6 {[%clk 0:02:30]} 13. Nb5 {[%clk 0:02:42]}  Qe7 {[%clk 0:02:19]} 14. a4 {[%clk 0:02:33]}  Nc6 {[%clk 0:02:15]} 15. Ba2 {[%clk 0:02:28]}  Na5 {[%clk 0:02:14]} 16. Rc1 {[%clk 0:02:26]}  Bb7 {[%clk 0:02:13]} 17. Bb1 {[%clk 0:02:27]}  Qg5 {[%clk 0:02:05]} 18. e4 {[%clk 0:02:26]}  Rfd8 {[%clk 0:02:02]} 19. Qf3 {[%clk 0:02:11]}  Nc4 {[%clk 0:01:43]} 20. Qg3 {[%clk 0:02:02]}  Qxg3 {[%clk 0:01:42]} 21. hxg3 {[%clk 0:02:02]}  Nd2 {[%clk 0:01:40]} 22. Rfe1 {[%clk 0:02:01]}  Nxb1 {[%clk 0:01:39]} 23. Rxb1 {[%clk 0:02:02]}  Bc6 {[%clk 0:01:18]} 24. Rb4 {[%clk 0:01:49]}  a5 {[%clk 0:01:13]} 25. Rb2 {[%clk 0:01:42]}  Bxb5 {[%clk 0:01:09]} 26. Rxb5 {[%clk 0:01:42]}  Rac8 {[%clk 0:01:08]} 27. Rc1 {[%clk 0:01:27]}  Rc4 {[%clk 0:01:07]} 28. Rxb6 {[%clk 0:01:27]}  Rxe4 {[%clk 0:01:04]} 29. c4 {[%clk 0:01:27]}  Rc8 {[%clk 0:01:04]} 30. c5 {[%clk 0:01:26]}  Rxa4 {[%clk 0:01:02]} 31. c6 {[%clk 0:01:26]}  Rb4 {[%clk 0:01:02]} 32. Ra6 {[%clk 0:01:25]}  a4 {[%clk 0:01:00]} 33. Ra7 {[%clk 0:01:12]}  Rb6 {[%clk 0:00:55]} 34. c7 {[%clk 0:01:09]}  Kf8 {[%clk 0:00:50]} 35. Rxa4 {[%clk 0:01:08]}  Rb7 {[%clk 0:00:49]} 36. Rac4 {[%clk 0:01:08]}  Ke7 {[%clk 0:00:49]} 37. g4 {[%clk 0:01:04]}  Kd7 {[%clk 0:00:49]} 38. Rd1+ {[%clk 0:01:04]}  Ke7 {[%clk 0:00:50]} 39. Rdc1 {[%clk 0:01:00]}  Kd7 {[%clk 0:00:50]} 40. Rf4 {[%clk 0:01:00]}  Ke7 {[%clk 0:00:48]} 41. Rfc4 {[%clk 0:00:56]} 1/2-1/2


[Site "https://www.chess.com"]

[Event "Titled Tuesday Blitz July 20 2021"]
[White "Sarkar, Justin"]
[Black "Kubatko, Ivan"]
[WhiteFideId "2010011"]
[BlackFideId "24111473"]
[WhiteElo "2072"]
[BlackElo "2285"]
[Result "0-1"]
[Round "10"]
[TimeControl "180+1"]
[Date "2021.07.21"]
[WhiteClock "0:00:12"]
[BlackClock "0:00:25"]

1. d4 {[%clk 0:02:50]}  d5 {[%clk 0:02:59]} 2. c4 {[%clk 0:02:49]}  e6 {[%clk 0:03:00]} 3. Nc3 {[%clk 0:02:48]}  c5 {[%clk 0:02:59]} 4. cxd5 {[%clk 0:02:47]}  cxd4 {[%clk 0:03:00]} 5. Qa4+ {[%clk 0:02:40]}  Bd7 {[%clk 0:03:00]} 6. Qxd4 {[%clk 0:02:40]}  exd5 {[%clk 0:03:00]} 7. Qxd5 {[%clk 0:02:38]}  Nc6 {[%clk 0:03:01]} 8. a3 {[%clk 0:02:25]}  Nf6 {[%clk 0:03:00]} 9. Qd1 {[%clk 0:02:19]}  Bc5 {[%clk 0:02:37]} 10. Bf4 {[%clk 0:02:12]}  Qb6 {[%clk 0:02:21]} 11. e3 {[%clk 0:02:09]}  Qxb2 {[%clk 0:02:21]} 12. Na4 {[%clk 0:01:59]}  Bb4+ {[%clk 0:02:08]} 13. axb4 {[%clk 0:01:59]}  Qxb4+ {[%clk 0:02:08]} 14. Qd2 {[%clk 0:01:58]}  Ne4 {[%clk 0:01:56]} 15. Qxb4 {[%clk 0:01:50]}  Nxb4 {[%clk 0:01:57]} 16. Nb6 {[%clk 0:00:17]}  Nc2+ {[%clk 0:01:34]} 17. Ke2 {[%clk 0:00:17]}  Nxa1 {[%clk 0:00:56]} 18. Nxa8 {[%clk 0:00:16]}  Bb5+ {[%clk 0:00:57]} 19. Ke1 {[%clk 0:00:16]}  Nc2+ {[%clk 0:00:56]} 20. Kd1 {[%clk 0:00:16]}  Nxf2+ {[%clk 0:00:27]} 21. Kxc2 {[%clk 0:00:15]}  Bxf1 {[%clk 0:00:27]} 22. Nc7+ {[%clk 0:00:13]}  Kd7 {[%clk 0:00:26]} 23. Nh3 {[%clk 0:00:12]}  Nxh1 {[%clk 0:00:25]} 0-1


[Site "https://www.chess.com"]

[Event "Titled Tuesday Blitz July 20 2021"]
[White "Seo, Jung Min"]
[Black "Golubev, Mikhail"]
[WhiteFideId "1734687"]
[BlackFideId "14100983"]
[WhiteElo "2486"]
[BlackElo "2374"]
[Result "1-0"]
[Round "10"]
[TimeControl "180+1"]
[Date "2021.07.20"]
[WhiteClock "0:00:07"]
[BlackClock "0:00:01"]

1. e4 {[%clk 0:03:00]}  c5 {[%clk 0:02:59]} 2. Nf3 {[%clk 0:03:01]}  d6 {[%clk 0:02:59]} 3. g3 {[%clk 0:03:00]}  Nf6 {[%clk 0:02:58]} 4. Nc3 {[%clk 0:02:59]}  g6 {[%clk 0:02:56]} 5. Bg2 {[%clk 0:02:59]}  Bg7 {[%clk 0:02:56]} 6. O-O {[%clk 0:02:59]}  O-O {[%clk 0:02:56]} 7. d4 {[%clk 0:02:59]}  cxd4 {[%clk 0:02:55]} 8. Nxd4 {[%clk 0:02:59]}  Nc6 {[%clk 0:02:55]} 9. Nxc6 {[%clk 0:02:59]}  bxc6 {[%clk 0:02:55]} 10. Qd3 {[%clk 0:02:56]}  Rb8 {[%clk 0:02:50]} 11. b3 {[%clk 0:02:53]}  Qa5 {[%clk 0:02:43]} 12. Bd2 {[%clk 0:02:37]}  Ba6 {[%clk 0:02:42]} 13. Nd5 {[%clk 0:02:29]}  Bxd3 {[%clk 0:02:17]} 14. Nxe7+ {[%clk 0:02:28]}  Kh8 {[%clk 0:02:16]} 15. Bxa5 {[%clk 0:02:28]}  Bxf1 {[%clk 0:02:16]} 16. Rxf1 {[%clk 0:02:28]}  Rbe8 {[%clk 0:02:12]} 17. Nxc6 {[%clk 0:02:25]}  Nxe4 {[%clk 0:02:12]} 18. Nxa7 {[%clk 0:02:24]}  Bc3 {[%clk 0:01:29]} 19. Bb6 {[%clk 0:02:21]}  d5 {[%clk 0:01:14]} 20. Nb5 {[%clk 0:02:18]}  Be5 {[%clk 0:00:53]} 21. Nc7 {[%clk 0:01:59]}  Bxc7 {[%clk 0:00:52]} 22. Bxc7 {[%clk 0:01:59]}  Rc8 {[%clk 0:00:52]} 23. Be5+ {[%clk 0:01:59]}  f6 {[%clk 0:00:51]} 24. Bxe4 {[%clk 0:01:55]}  fxe5 {[%clk 0:00:50]} 25. Bxd5 {[%clk 0:01:54]}  Rxc2 {[%clk 0:00:50]} 26. a4 {[%clk 0:01:52]}  Rd8 {[%clk 0:00:40]} 27. Bc4 {[%clk 0:01:42]}  Rdd2 {[%clk 0:00:36]} 28. a5 {[%clk 0:01:26]}  Ra2 {[%clk 0:00:36]} 29. a6 {[%clk 0:01:26]}  e4 {[%clk 0:00:34]} 30. b4 {[%clk 0:01:21]}  Ra4 {[%clk 0:00:27]} 31. Re1 {[%clk 0:01:12]}  Rb2 {[%clk 0:00:16]} 32. Rxe4 {[%clk 0:01:06]}  Rbxb4 {[%clk 0:00:12]} 33. Re8+ {[%clk 0:01:05]}  Kg7 {[%clk 0:00:12]} 34. Be2 {[%clk 0:01:05]}  Rb2 {[%clk 0:00:09]} 35. h4 {[%clk 0:00:56]}  h5 {[%clk 0:00:09]} 36. Kg2 {[%clk 0:00:54]}  Raa2 {[%clk 0:00:08]} 37. Kf3 {[%clk 0:00:52]}  Ra3+ {[%clk 0:00:08]} 38. Re3 {[%clk 0:00:48]}  Raa2 {[%clk 0:00:08]} 39. Re4 {[%clk 0:00:43]}  Ra3+ {[%clk 0:00:08]} 40. Re3 {[%clk 0:00:43]}  Raa2 {[%clk 0:00:08]} 41. Re7+ {[%clk 0:00:40]}  Kf6 {[%clk 0:00:08]} 42. Re4 {[%clk 0:00:36]}  Ra3+ {[%clk 0:00:07]} 43. Kf4 {[%clk 0:00:35]}  Raa2 {[%clk 0:00:06]} 44. Bc4 {[%clk 0:00:28]}  Rxf2+ {[%clk 0:00:05]} 45. Ke3 {[%clk 0:00:28]}  Rab2 {[%clk 0:00:01]} 46. a7 {[%clk 0:00:25]}  Ra2 {[%clk 0:00:01]} 47. Re6+ {[%clk 0:00:14]}  Kf5 {[%clk 0:00:01]} 48. Re8 {[%clk 0:00:07]} 1-0


[Site "https://www.chess.com"]

[Event "Titled Tuesday Blitz July 20 2021"]
[White "Shubenkova, Veronika"]
[Black "Rozhkov, Viacheslav"]
[WhiteFideId "44124040"]
[BlackFideId "4181484"]
[WhiteElo "1895"]
[BlackElo "2324"]
[Result "0-1"]
[Round "10"]
[TimeControl "180+1"]
[Date "2021.07.21"]
[WhiteClock "0:01:49"]
[BlackClock "0:01:08"]

1. d4 {[%clk 0:03:00]}  d5 {[%clk 0:02:58]} 2. e3 {[%clk 0:02:58]}  e6 {[%clk 0:02:58]} 3. f4 {[%clk 0:02:57]}  f5 {[%clk 0:02:57]} 4. Nf3 {[%clk 0:02:57]}  Nf6 {[%clk 0:02:58]} 5. Bd3 {[%clk 0:02:57]}  Bd6 {[%clk 0:02:58]} 6. Ne5 {[%clk 0:02:57]}  O-O {[%clk 0:02:58]} 7. O-O {[%clk 0:02:57]}  Ne4 {[%clk 0:02:58]} 8. Bxe4 {[%clk 0:02:56]}  fxe4 {[%clk 0:02:58]} 9. b3 {[%clk 0:02:56]}  c5 {[%clk 0:02:54]} 10. Bb2 {[%clk 0:02:56]}  cxd4 {[%clk 0:02:54]} 11. Bxd4 {[%clk 0:02:56]}  Nc6 {[%clk 0:02:54]} 12. Bb2 {[%clk 0:02:52]}  Bxe5 {[%clk 0:02:50]} 13. fxe5 {[%clk 0:02:52]}  Rxf1+ {[%clk 0:02:49]} 14. Qxf1 {[%clk 0:02:52]}  Qg5 {[%clk 0:02:50]} 15. Qf4 {[%clk 0:02:52]}  Qxf4 {[%clk 0:02:48]} 16. exf4 {[%clk 0:02:52]}  Nb4 {[%clk 0:02:39]} 17. Na3 {[%clk 0:02:51]}  Bd7 {[%clk 0:02:38]} 18. Kf2 {[%clk 0:02:51]}  Rc8 {[%clk 0:02:37]} 19. c4 {[%clk 0:02:39]}  Nd3+ {[%clk 0:02:36]} 20. Ke3 {[%clk 0:02:39]}  Nxb2 {[%clk 0:02:36]} 21. cxd5 {[%clk 0:02:37]}  exd5 {[%clk 0:02:36]} 22. Kd4 {[%clk 0:02:37]}  Be6 {[%clk 0:02:11]} 23. Nb5 {[%clk 0:02:34]}  Nd3 {[%clk 0:02:06]} 24. Nxa7 {[%clk 0:02:30]}  Rc2 {[%clk 0:01:56]} 25. Nb5 {[%clk 0:02:27]}  Nxf4 {[%clk 0:01:53]} 26. Rf1 {[%clk 0:02:26]}  Nxg2 {[%clk 0:01:27]} 27. a4 {[%clk 0:02:14]}  Nh4 {[%clk 0:01:19]} 28. Ke3 {[%clk 0:02:08]}  Nf5+ {[%clk 0:01:15]} 29. Kf4 {[%clk 0:02:08]}  h6 {[%clk 0:01:15]} 30. h4 {[%clk 0:02:07]}  Nxh4 {[%clk 0:01:11]} 31. Nd4 {[%clk 0:01:52]}  g5+ {[%clk 0:01:10]} 32. Kg3 {[%clk 0:01:49]}  Rg2# {[%clk 0:01:08]} 0-1


[Site "https://www.chess.com"]

[Event "Titled Tuesday Blitz July 20 2021"]
[White "Siva Mahadevan"]
[Black "Indjic, Aleksandar"]
[WhiteFideId "25043153"]
[BlackFideId "911925"]
[WhiteElo "2203"]
[BlackElo "2643"]
[Result "0-1"]
[Round "10"]
[TimeControl "180+1"]
[Date "2021.07.20"]
[WhiteClock "0:00:49"]
[BlackClock "0:00:33"]

1. e4 {[%clk 0:03:00]}  c5 {[%clk 0:02:58]} 2. Nf3 {[%clk 0:03:01]}  d6 {[%clk 0:02:56]} 3. d4 {[%clk 0:03:01]}  cxd4 {[%clk 0:02:57]} 4. Nxd4 {[%clk 0:03:02]}  Nf6 {[%clk 0:02:57]} 5. Nc3 {[%clk 0:03:03]}  a6 {[%clk 0:02:58]} 6. Bg5 {[%clk 0:03:03]}  e6 {[%clk 0:02:56]} 7. f4 {[%clk 0:03:03]}  Qb6 {[%clk 0:02:52]} 8. Qd2 {[%clk 0:03:03]}  Nc6 {[%clk 0:02:49]} 9. Bxf6 {[%clk 0:02:56]}  gxf6 {[%clk 0:02:49]} 10. Nb3 {[%clk 0:02:54]}  h5 {[%clk 0:02:48]} 11. O-O-O {[%clk 0:02:53]}  Be7 {[%clk 0:02:46]} 12. Kb1 {[%clk 0:02:50]}  Bd7 {[%clk 0:02:39]} 13. Be2 {[%clk 0:02:50]}  Rc8 {[%clk 0:02:24]} 14. Rhf1 {[%clk 0:02:49]}  Qc7 {[%clk 0:02:22]} 15. Rf3 {[%clk 0:02:48]}  b5 {[%clk 0:02:17]} 16. Bf1 {[%clk 0:02:37]}  b4 {[%clk 0:01:53]} 17. Ne2 {[%clk 0:02:37]}  a5 {[%clk 0:01:53]} 18. Ned4 {[%clk 0:02:35]}  a4 {[%clk 0:01:44]} 19. Nb5 {[%clk 0:02:34]}  Qb8 {[%clk 0:01:43]} 20. Nc1 {[%clk 0:02:28]}  Kf8 {[%clk 0:01:31]} 21. Nxd6 {[%clk 0:02:24]}  Rd8 {[%clk 0:01:31]} 22. Rd3 {[%clk 0:02:23]}  b3 {[%clk 0:01:10]} 23. cxb3 {[%clk 0:02:20]}  Nb4 {[%clk 0:01:10]} 24. Nxf7 {[%clk 0:02:07]}  Kxf7 {[%clk 0:01:05]} 25. Rxd7 {[%clk 0:02:06]}  Rxd7 {[%clk 0:01:06]} 26. Qxd7 {[%clk 0:01:55]}  Rd8 {[%clk 0:01:02]} 27. Qxd8 {[%clk 0:01:29]}  Bxd8 {[%clk 0:01:00]} 28. bxa4 {[%clk 0:01:30]}  Be7 {[%clk 0:00:57]} 29. f5 {[%clk 0:01:27]}  Qc7 {[%clk 0:00:54]} 30. fxe6+ {[%clk 0:01:24]}  Kxe6 {[%clk 0:00:53]} 31. Rd2 {[%clk 0:01:25]}  f5 {[%clk 0:00:47]} 32. exf5+ {[%clk 0:01:23]}  Kf7 {[%clk 0:00:47]} 33. Nb3 {[%clk 0:01:13]}  Bg5 {[%clk 0:00:45]} 34. Rf2 {[%clk 0:01:06]}  Qc6 {[%clk 0:00:41]} 35. Re2 {[%clk 0:00:51]}  Qxa4 {[%clk 0:00:34]} 36. a3 {[%clk 0:00:49]}  Qxb3 {[%clk 0:00:32]} 37. axb4 {[%clk 0:00:50]}  Qd1+ {[%clk 0:00:33]} 38. Ka2 {[%clk 0:00:49]}  Qxf1 {[%clk 0:00:33]} 0-1


[Site "https://www.chess.com"]